bitfinex-derivatives/quotes_SOLF0:USTF0_20241026
["timestamp","ask_amount","ask_price","bid_price","bid_amount"]
[1729969970574,2.9197,171.48,171.44,2.9203]
[1729969970974,20.33136588,171.53,171.44,2.9203]
[1729969970975,2.9199,171.47,171.44,2.9203]
[1729969971173,2.9199,171.47,171.41,12.63166588]
[1729969971174,2.9199,171.47,171.43,2.9204]
[1729969974469,5.16,171.48,171.41,12.63166588]
[1729969974674,5.16,171.48,171.38,12.63166588]
[1729969974675,2.9204,171.44,171.38,12.63166588]
[1729969975775,2.919,171.53,171.49,2.9194]
[1729969976077,5.16,171.59,171.37,18.47466588]
[1729969976078,3.7919,171.59,171.48,12.63166588]
[1729969976374,2.96351119,171.68,171.54,12.63166588]
[1729969976567,12.63166588,171.66,171.54,12.63166588]
[1729969976977,2.9173,171.63,171.57,2.918]
[1729969978576,12.63166588,171.66,171.54,12.63166588]
[1729969978772,2.9175,171.61,171.55,2.9185]
[1729969978974,5.16,171.6,171.55,2.9185]
[1729969980577,2.9178,171.59,171.53,15.55036588]
[1729969981975,2.9166,171.66,171.61,2.9174]
[1729969982176,3.7919,171.67,171.6,12.63166588]
[1729969982970,2.9168,171.66,171.6,12.63166588]
[1729969984280,2.9168,171.66,171.6,15.54926588]
[1729969984978,8.0766,171.66,171.6,15.54916588]
[1729969985583,2.9166,171.66,171.6,12.63166588]
[1729969985879,5.16,171.67,171.6,12.63166588]
[1729969986083,5.16,171.67,171.63,12.63166588]
[1729969987286,5.16,171.67,171.64,2.917]
[1729969987473,2.9162,171.69,171.64,2.917]
[1729969987677,8.0762,171.69,171.64,2.917]
[1729969988680,560.0,171.89,171.55,7.5885]
[1729969988681,219.73389271,171.78,171.67,12.63166588]
[1729969988879,219.73389271,171.78,171.62,12.63166588]
[1729969988880,222.64859271,171.78,171.7,12.63166588]
[1729969989080,5.16,171.77,171.7,12.63166588]
[1729969989879,5.16,171.77,171.72,2.9155]
[1729969990383,219.73389271,171.78,171.72,2.9155]
[1729969990581,8.0748,171.77,171.72,2.9155]
[1729969990992,8.0748,171.77,171.71,2.9157]
[1729969991883,8.0748,171.77,171.63,3.7897]
[1729969991884,2.9155,171.73,171.67,2.9163]
[1729969992086,2.9155,171.73,171.63,3.7897]
[1729969992087,5.16,171.72,171.65,12.63166588]
[1729969992678,5.16,171.72,171.67,2.9163]
[1729969992987,5.16,171.72,171.65,12.63166588]
[1729969993178,5.16,171.72,171.63,3.7897]
[1729969993179,5.16,171.72,171.63,12.63166588]
[1729969993381,5.16,171.72,171.65,2.9168]
[1729969993382,2.9159,171.71,171.65,2.9168]
[1729969993586,5.16,171.72,171.65,2.9168]
[1729969994179,2.9161,171.69,171.64,2.9169]
[1729969994384,12.63166588,171.71,171.6,17.79166588]
[1729969994582,12.63166588,171.71,171.58,12.63166588]
[1729969994583,12.63166588,171.68,171.58,12.63166588]
[1729969994781,5.16,171.67,171.58,12.63166588]
[1729969995485,2.9167,171.66,171.6,2.9175]
[1729969997389,2.9167,171.66,171.61,2.9174]
[1729969997591,2.9167,171.66,171.55,3.7394]
[1729969997592,5.16,171.73,171.65,12.63166588]
[1729969997894,5.16,171.73,171.67,2.9163]
[1729969998090,8.0755,171.73,171.67,2.9163]
[1729969999692,5.16,171.73,171.68,12.63166588]
[1729969999885,5.16,171.73,171.71,2.9158]
[1729970000192,5.16,171.73,171.68,12.63166588]
[1729970000392,5.16,171.73,171.68,20.17065303]
[1729970000794,5.16,171.73,171.71,2.9158]
[1729970001998,219.73389271,171.78,171.75,2.915]
[1729970002291,219.73389271,171.78,171.64,6.4346]
[1729970002292,219.73389271,171.78,171.71,20.17065303]
[1729970002894,222.64849271,171.78,171.73,2.9153]
[1729970003290,219.73389271,171.78,171.71,20.17065303]
[1729970003492,2.9151,171.76,171.71,2.9157]
[1729970003692,8.0751,171.76,171.71,2.9157]
[1729970004388,8.0751,171.76,171.68,20.17065303]
[1729970004592,5.16,171.76,171.68,20.17065303]
[1729970005896,5.16,171.76,171.74,2.9152]
[1729970007792,2.9136,171.84,171.78,2.9145]
[1729970008302,5.16,171.84,171.74,20.17065303]
[1729970008495,5.16,171.84,171.77,2.9147]
[1729970008699,5.16,171.84,171.72,3.7138]
[1729970009199,5.16,171.84,171.75,20.17065303]
[1729970009395,2.9134,171.85,171.75,20.17065303]
[1729970009396,5.16,171.83,171.75,20.17065303]
[1729970009609,5.16,171.83,171.8,2.9142]
[1729970010014,5.16,171.83,171.75,20.17065303]
[1729970010206,5.16,171.83,171.81,2.9139]
[1729970010406,5.16,171.83,171.75,20.17065303]
[1729970011215,2.9136,171.84,171.75,20.17065303]
[1729970011514,8.0736,171.84,171.75,20.17065303]
[1729970013310,8.0736,171.84,171.78,2.9144]
[1729970013815,8.0736,171.84,171.74,2.9152]
[1729970013816,2.9144,171.79,171.74,2.9152]
[1729970014006,2.9144,171.79,171.72,3.7138]
[1729970014007,5.16,171.84,171.76,20.17065303]
[1729970014913,2.914,171.82,171.76,20.17065303]
[1729970015109,5.16,171.84,171.76,20.17065303]
[1729970015907,5.16,171.84,171.76,23.08555303]
[1729970015908,2.9139,171.82,171.76,23.08555303]
[1729970016714,2.3992,171.87,171.79,20.17065303]
[1729970016715,5.16,171.85,171.79,20.17065303]
[1729970017216,7.6592,171.87,171.8,2.9141]
[1729970017720,7.6592,171.87,171.79,20.17065303]
[1729970018112,2.3992,171.87,171.79,20.17065303]
[1729970018308,5.26,171.86,171.79,20.17065303]
[1729970019315,2.9136,171.85,171.79,20.17065303]
[1729970020116,2.9136,171.85,171.79,23.08495303]
[1729970021022,5.26,171.86,171.79,23.08495303]
[1729970021225,2.9136,171.84,171.79,23.08495303]
[1729970022324,2.9136,171.84,171.8,12.59162608]
[1729970023119,2.9136,171.84,171.8,15.50582608]
[1729970023319,5.26,171.86,171.8,12.59162608]
[1729970023716,5.26,171.86,171.78,12.59162608]
[1729970024120,2.914,171.82,171.78,12.59162608]
[1729970024715,5.26,171.86,171.8,12.59162608]
[1729970026114,2.9136,171.84,171.8,12.59162608]
[1729970027222,2.9136,171.84,171.81,2.9141]
[1729970027413,5.26,171.86,171.8,12.59162608]
[1729970027414,93.67720738,172.23,171.86,19.0]
[1729970027619,93.67720738,172.23,171.82,5.26]
[1729970027620,13.00546187,172.23,171.87,54.56532586]
[1729970027823,20.72546187,172.23,171.98,17.54]
[1729970028123,20.72546187,172.23,171.84,343.848]
[1729970028124,12.59162608,172.16,172.09,2.6335044]
[1729970028326,67.182,172.15,172.06,8.58411762]
[1729970028526,20.11859644,172.1,172.04,7.90051322]
[1729970028715,29.42179644,172.14,172.01,7.90051322]
[1729970028917,21.34179644,172.14,172.02,1.87865068]
[1729970029116,1.2232,172.14,171.94,1.2535]
[1729970029318,1.2232,172.14,172.05,20.11859644]
[1729970029319,8.08,172.13,172.05,20.11859644]
[1729970029726,8.08,172.13,172.06,2.9098]
[1729970030227,8.08,172.13,172.07,2.9096]
[1729970030523,8.08,172.13,172.02,20.11859644]
[1729970030724,8.08,172.13,172.0,20.11859644]
[1729970030725,2.9067,172.25,172.1,2.909]
[1729970030924,41.20405831,172.23,172.07,20.11859644]
[1729970031123,20.11859644,172.21,172.07,20.11859644]
[1729970031524,20.11859644,172.21,172.0,20.11859644]
[1729970031525,20.11859644,172.18,172.0,20.11859644]
[1729970031831,64.66,172.17,172.0,20.11859644]
[1729970032021,56.58,172.17,172.0,20.11859644]
[1729970032228,8.08,172.16,172.0,20.11859644]
[1729970032731,8.08,172.16,172.03,20.11859644]
[1729970033133,8.08,172.16,172.05,2.9099]
[1729970033335,20.11859644,172.15,172.0,20.11859644]
[1729970033524,21.34989644,172.15,172.0,20.11859644]
[1729970034421,24.25819644,172.15,172.03,2.9103]
[1729970034622,20.11859644,172.12,171.97,20.11859644]
[1729970034830,20.11859644,172.06,171.79,5.51257716]
[1729970035031,20.11859644,172.06,171.89,20.11859644]
[1729970035227,20.11859644,172.06,171.92,20.11859644]
[1729970035431,8.08,172.05,171.92,20.11859644]
[1729970035732,8.08,172.05,171.96,2.9115]
[1729970035936,8.08,172.05,171.92,20.11859644]
[1729970036232,8.08,172.05,171.85,1.258]
[1729970036233,20.11859644,172.03,171.85,1.258]
[1729970036430,20.11859644,172.06,171.91,20.11859644]
[1729970036633,8.08,172.05,171.94,20.11859644]
[1729970037322,8.08,172.04,171.94,20.11859644]
[1729970037523,18.81956187,172.23,171.96,20.11859644]
[1729970037524,8.08,172.03,171.96,20.11859644]
[1729970037731,8.08,172.04,171.99,20.11859644]
[1729970038326,8.08,172.04,172.01,2.9106]
[1729970038728,8.08,172.04,171.96,20.11859644]
[1729970038925,8.08,172.04,171.98,2.9111]
[1729970039125,8.08,172.04,171.96,20.11859644]
[1729970040135,8.08,172.04,172.03,2.9103]
[1729970040541,56.58,172.1,172.03,2.9103]
[1729970040737,56.58,172.1,172.04,2.9101]
[1729970040931,8.08,172.09,171.99,20.11859644]
[1729970042937,56.58,172.1,171.91,20.11859644]
[1729970042938,8.08,172.11,172.02,20.11859644]
[1729970043243,8.08,172.11,172.09,2.9092]
[1729970043534,8.08,172.11,172.01,1.2183]
[1729970043840,8.08,172.11,172.05,2.91]
[1729970044237,8.08,172.11,172.0,20.11859644]
[1729970044541,8.08,172.11,172.06,2.9098]
[1729970044838,8.08,172.11,172.0,20.11859644]
[1729970045039,8.08,172.11,172.06,2.9097]
[1729970046134,8.08,172.11,172.06,2.9098]
[1729970046439,8.08,172.11,172.0,20.11859644]
[1729970047242,10.989,172.11,172.04,2.9101]
[1729970047433,8.08,172.11,172.0,20.11859644]
[1729970048038,1.2831,172.12,172.0,20.11859644]
[1729970048240,1.2831,172.12,171.96,1.2183]
[1729970048241,8.08,172.11,172.02,20.11859644]
[1729970048837,8.08,172.11,172.08,2.9095]
[1729970049337,8.08,172.11,172.02,20.11859644]
[1729970049531,8.08,172.11,172.04,2.9101]
[1729970049737,8.08,172.11,171.99,20.11859644]
[1729970050835,2.9092,172.1,171.99,20.11859644]
[1729970051344,10.989,172.11,172.04,2.9101]
[1729970052037,8.08,172.11,172.04,2.9101]
[1729970053644,12.2564,172.11,172.04,2.9101]
[1729970054139,9.3474,172.11,172.05,2.91]
[1729970054342,9.3474,172.11,171.99,20.11859644]
[1729970054644,9.3474,172.11,172.04,2.9101]
[1729970054645,12.2564,172.11,172.04,2.9101]
[1729970055540,9.3474,172.11,171.99,20.11859644]
[1729970055736,2.9095,172.09,171.99,20.11859644]
[1729970055937,9.3474,172.11,171.99,20.11859644]
[1729970056644,2.9093,172.1,172.03,2.9102]
[1729970057050,2.9078,172.18,172.11,2.909]
[1729970057344,1.1721,172.18,172.06,20.11859644]
[1729970057640,2.9082,172.16,172.1,2.9091]
[1729970057843,1.1721,172.18,172.06,20.11859644]
[1729970058351,1.1721,172.18,172.08,20.11859644]
[1729970058549,4.0801,172.18,172.08,20.11859644]
[1729970058937,4.0801,172.18,172.11,2.9089]
[1729970059143,7.72,172.17,172.11,2.9089]
[1729970059438,4.0801,172.18,172.12,2.9088]
[1729970059649,7.72,172.17,172.12,2.9088]
[1729970060552,7.72,172.17,172.08,20.11859644]
[1729970061149,10.628,172.17,172.11,2.9089]
[1729970061351,1.1721,172.18,172.11,20.11859644]
[1729970061550,1.1721,172.18,172.05,20.11859644]
[1729970062056,1.1721,172.18,172.08,20.11859644]
[1729970062245,56.54,172.37,172.1,20.11859644]
[1729970062447,10.1163,172.27,172.1,20.11859644]
[1729970062650,20.11859644,172.24,172.13,2.9085]
[1729970062953,10.1163,172.27,172.13,2.9085]
[1729970062954,1.2143,172.22,172.13,20.11859644]
[1729970063158,7.72,172.21,172.13,20.11859644]
[1729970063348,7.72,172.21,172.09,1.2314]
[1729970064250,2.9079,172.18,172.11,2.909]
[1729970064557,2.9079,172.18,172.0,20.11859644]
[1729970064558,20.11859644,172.18,172.05,20.11859644]
[1729970064853,2.9088,172.13,172.05,2.9098]
[1729970065058,7.72,172.12,172.05,2.9098]
[1729970065451,7.72,172.12,172.08,2.9093]
[1729970066956,7.72,172.12,172.05,20.11859644]
[1729970067157,7.72,172.12,172.02,20.11859644]
[1729970067656,7.72,172.12,172.06,2.9097]
[1729970068456,10.629,172.12,172.06,2.9097]
[1729970068846,7.72,172.12,172.02,20.11859644]
[1729970069054,2.9096,172.08,172.03,2.9102]
[1729970069656,1.2953,172.11,171.99,20.11859644]
[1729970069958,20.11859644,172.09,171.98,2.9111]
[1729970070159,2.5469,172.08,171.98,2.9111]
[1729970070456,2.5469,172.08,171.95,1.2977]
[1729970070457,7.34,172.15,172.09,2.9092]
[1729970070665,7.34,172.15,172.07,20.11859644]
[1729970070848,1.2844,172.17,172.07,20.11859644]
[1729970071050,7.34,172.16,172.07,20.11859644]
[1729970071961,7.34,172.15,172.1,2.9091]
[1729970072347,7.34,172.15,172.07,20.11859644]
[1729970072958,7.34,172.15,172.1,2.909]
[1729970073369,2.9082,172.16,172.1,2.909]
[1729970073560,7.34,172.15,172.1,2.909]
[1729970074063,7.34,172.14,172.1,2.909]
[1729970076271,10.2486,172.14,172.09,2.9093]
[1729970076458,7.34,172.14,172.07,20.11859644]
[1729970076865,10.2486,172.14,172.08,2.9093]
[1729970077168,10.2486,172.14,172.04,20.11859644]
[1729970077169,7.34,172.14,172.04,20.11859644]
[1729970077357,1.2478,172.13,172.04,20.11859644]
[1729970077559,2.909,172.12,172.07,2.9096]
[1729970077754,1.2478,172.13,172.04,20.11859644]
[1729970078058,4.1566,172.13,172.08,2.9094]
[1729970078465,1.2478,172.13,172.04,20.11859644]
[1729970078661,2.9088,172.12,172.04,20.11859644]
[1729970078858,2.9088,172.12,171.97,7.34]
[1729970078859,1.2478,172.13,171.97,7.34]
[1729970079054,2.4909,172.13,172.01,20.11859644]
[1729970079366,2.9094,172.09,172.05,2.9099]
[1729970079674,2.4909,172.13,172.04,2.9101]
[1729970079675,10.2496,172.08,172.04,2.9101]
[1729970079865,7.34,172.07,172.04,2.9101]
[1729970081566,7.34,172.07,172.01,20.11859644]
[1729970082561,7.34,172.07,171.83,2.89690506]
[1729970082562,20.11859644,172.04,171.83,2.89690506]
[1729970082769,20.11859644,172.05,171.92,1.2046]
[1729970082968,2.9107,172.01,171.95,2.9116]
[1729970083262,2.9107,172.01,171.89,20.11859644]
[1729970083263,7.0,172.0,171.89,20.11859644]
[1729970083457,7.0,172.0,171.9,1.2046]
[1729970083653,7.0,172.0,171.95,2.9116]
[1729970084256,7.0,172.0,171.89,20.11859644]
[1729970087573,1.1732,172.03,171.95,20.11859644]
[1729970087868,7.0,172.02,171.97,20.11859644]
[1729970088871,7.0,172.02,171.98,2.9111]
[1729970090460,7.0,172.02,171.99,2.911]
[1729970090975,7.0,172.02,172.0,2.9107]
[1729970092764,7.0,172.02,171.95,20.1279136]
[1729970092966,7.0,172.02,171.85,1.1764]
[1729970093166,7.0,172.01,171.85,8.1764]
[1729970093468,7.0,172.01,171.9,20.1279136]
[1729970093965,2.911,172.0,171.96,2.9114]
[1729970094164,7.0,172.01,171.9,20.1279136]
[1729970094570,2.9112,171.98,171.94,2.9118]
[1729970095074,2.9112,171.98,171.9,20.1279136]
[1729970095769,7.0,172.01,171.9,20.1279136]
[1729970095973,7.0,172.01,171.89,20.14298707]
[1729970096574,7.0,172.01,171.93,2.9119]
[1729970096977,2.9113,171.98,171.93,2.9119]
[1729970097176,7.0,172.01,171.85,1.1764]
[1729970097375,175.70168304,172.09,171.93,20.14298707]
[1729970097577,175.70168304,172.09,171.83,24.06395412]
[1729970097578,2.9098,172.07,171.96,20.14298707]
[1729970097877,10.6502,172.08,171.96,20.14298707]
[1729970098075,10.6502,172.08,172.02,2.9105]
[1729970098272,10.6502,172.08,171.96,20.14298707]
[1729970098574,13.5597,172.08,172.03,2.9103]
[1729970098777,20.00546187,172.23,172.06,20.14298707]
[1729970098982,2.4044,172.21,172.09,20.14298707]
[1729970099276,2.9076,172.19,172.09,20.14298707]
[1729970099476,2.4044,172.21,172.09,20.14298707]
[1729970099681,7.0,172.2,172.12,20.14298707]
[1729970099872,7.0,172.2,172.17,2.9078]
[1729970100278,2.4044,172.21,172.15,20.14298707]
[1729970100279,1.1921,172.21,172.15,20.14298707]
[1729970100779,7.0,172.22,172.15,20.14298707]
[1729970100975,7.0,172.22,172.19,2.9076]
[1729970101378,7.0,172.22,172.18,2.9077]
[1729970101980,7.0,172.22,172.15,20.14298707]
[1729970102177,20.00546187,172.23,172.15,20.14298707]
[1729970103280,20.00546187,172.23,172.18,2.9077]
[1729970103476,20.00546187,172.23,172.15,20.14298707]
[1729970103984,20.00546187,172.23,172.18,2.9076]
[1729970104179,20.00546187,172.23,172.15,20.14298707]
[1729970105376,2.9073,172.22,172.15,23.05118707]
[1729970105570,2.9073,172.22,172.09,20.14298707]
[1729970105571,20.14298707,172.22,172.09,20.14298707]
[1729970105784,20.14298707,172.22,172.07,20.14298707]
[1729970106480,2.9076,172.2,172.13,2.9085]
[1729970106681,20.14298707,172.22,172.13,2.9085]
[1729970107069,2.9076,172.19,172.13,2.9085]
[1729970107269,20.00546187,172.23,172.1,20.14298707]
[1729970107477,20.14298707,172.22,172.04,1.273]
[1729970107671,20.14298707,172.22,172.08,20.14298707]
[1729970107885,20.14298707,172.22,172.12,2.9087]
[1729970108086,20.14298707,172.22,172.08,20.14298707]
[1729970108382,2.9077,172.19,172.08,20.14298707]
[1729970108582,6.68,172.18,172.13,2.9085]
[1729970109682,6.68,172.18,172.14,2.9085]
[1729970109984,6.68,172.19,172.1,20.14298707]
[1729970110575,2.9072,172.22,172.13,20.14298707]
[1729970110777,6.68,172.21,172.13,20.14298707]
[1729970111181,9.5872,172.22,172.16,2.908]
[1729970111683,2.9073,172.21,172.16,2.908]
[1729970112474,9.5673,172.21,172.16,2.908]
[1729970113783,9.5673,172.21,172.04,1.273]
[1729970113784,20.14298707,172.17,171.95,6.66]
[1729970113988,20.14298707,172.17,172.01,20.14298707]
[1729970113989,10.312,172.16,172.01,20.14298707]
[1729970114480,6.66,172.15,172.01,20.14298707]
[1729970114686,6.66,172.15,172.04,20.14298707]
[1729970114887,2.909,172.12,172.06,2.9097]
[1729970115092,6.66,172.15,172.04,20.14298707]
[1729970115479,2.9089,172.12,172.06,2.9098]
[1729970115886,6.66,172.15,172.01,20.14298707]
[1729970116087,6.66,172.15,172.02,2.9105]
[1729970116088,2.9096,172.08,172.02,2.9105]
[1729970116390,9.5896,172.08,172.01,20.14298707]
[1729970116690,6.68,172.08,172.01,20.14298707]
[1729970116892,6.68,172.08,172.04,2.9101]
[1729970119387,6.68,172.08,172.01,20.14298707]
[1729970119586,6.68,172.08,172.05,2.9098]
[1729970119784,6.68,172.08,172.01,20.14298707]
[1729970120093,6.68,172.08,172.05,2.9099]
[1729970121401,3.652,172.16,172.04,20.14298707]
[1729970121402,6.68,172.1,172.04,20.14298707]
[1729970121594,6.68,172.12,172.04,20.14298707]
[1729970121800,6.68,172.12,172.07,20.14298707]
[1729970123395,9.5888,172.12,172.09,2.9093]
[1729970124091,2.9084,172.15,172.11,2.9089]
[1729970124995,56.52,172.2,172.13,2.9085]
[1729970124996,2.908,172.17,172.13,2.9085]
[1729970125196,6.68,172.16,172.13,2.9085]
[1729970126100,9.5882,172.16,172.13,2.9085]
[1729970126494,9.5882,172.16,172.12,2.9088]
[1729970129697,6.68,172.16,172.1,20.14298707]
[1729970129902,6.68,172.16,172.07,20.14298707]
[1729970130095,6.68,172.16,172.01,20.14298707]
[1729970130296,20.14298707,172.14,172.01,20.14298707]
[1729970130496,2.9098,172.07,172.01,20.14298707]
[1729970130913,6.34,172.09,172.01,20.14298707]
[1729970132401,2.9096,172.08,172.04,2.91]
[1729970132597,6.34,172.09,172.01,20.14298707]
[1729970133304,6.34,172.09,171.99,20.14298707]
[1729970133701,2.9103,172.04,172.0,2.9108]
[1729970133900,6.34,172.04,171.99,20.14298707]
[1729970134208,6.34,172.04,171.86,5.8264]
[1729970134410,2.9109,172.0,171.93,20.14298707]
[1729970134602,6.34,171.99,171.93,20.14298707]
[1729970134909,6.34,171.99,171.92,1.1875]
[1729970135102,2.9114,171.98,171.94,2.9119]
[1729970135302,6.34,171.99,171.91,20.14298707]
[1729970136104,9.2511,171.99,171.94,2.9119]
[1729970136303,6.34,171.99,171.91,20.14298707]
[1729970136806,9.2511,171.99,171.94,2.9117]
[1729970137504,9.2511,171.99,171.95,2.9117]
[1729970137902,9.251,171.99,171.91,20.14298707]
[1729970138210,6.34,172.0,171.94,20.14298707]
[1729970138402,6.34,172.0,171.98,2.9111]
[1729970138799,6.34,172.0,171.96,23.05438707]
[1729970139103,6.34,172.0,171.96,20.14298707]
[1729970139513,6.34,172.0,171.98,2.9112]
[1729970139704,6.34,172.0,171.96,20.14298707]
[1729970140009,7.5594,172.03,171.96,20.14298707]
[1729970141205,6.34,172.04,171.96,20.14298707]
[1729970142411,2.9105,172.02,171.98,2.9111]
[1729970144004,6.34,172.04,171.99,20.14298707]
[1729970144898,1.1819,172.06,171.99,20.14298707]
[1729970145112,6.34,172.05,171.96,20.14298707]
[1729970145806,2.9106,172.02,171.98,2.9112]
[1729970146306,6.34,172.05,171.93,20.14298707]
[1729970146505,6.34,172.05,171.97,2.9112]
[1729970146704,6.34,172.05,171.88,339.1875]
[1729970146904,6.34,172.05,171.9,20.14298707]
[1729970147108,20.14298707,172.02,171.92,2.9121]
[1729970147308,20.14298707,172.02,171.88,1.1875]
[1729970147709,20.14298707,172.02,171.93,2.9119]
[1729970147710,2.9113,171.98,171.93,2.9119]
[1729970148010,6.34,171.97,171.93,2.9119]
[1729970149111,6.34,171.97,171.93,2.912]
[1729970150409,9.2514,171.97,171.93,2.912]
[1729970150609,1.1827,171.96,171.93,2.912]
[1729970151002,1.1827,171.96,171.24,91.01704195]
[1729970151003,1.1827,171.96,171.85,20.14298707]
[1729970151306,1.1827,171.96,171.73,346.7459]
[1729970151307,20.14298707,171.94,171.8,1.2296]
[1729970151513,2.9126,171.9,171.85,2.9134]
[1729970151711,6.0,171.89,171.85,2.9134]
[1729970152207,6.0,171.89,171.8,21.37258707]
[1729970152708,8.9129,171.89,171.84,2.9136]
[1729970152913,8.9129,171.89,171.8,21.37258707]
[1729970154605,8.9129,171.89,171.85,2.9133]
[1729970156005,2.9136,171.85,171.81,2.914]
[1729970156204,6.0,171.84,171.81,2.914]
[1729970156608,2.9139,171.83,171.79,2.9144]
[1729970156809,6.0,171.84,171.75,20.14298707]
[1729970157514,1.2196,171.86,171.78,20.14298707]
[1729970157712,1.2869,171.87,171.81,20.14298707]
[1729970157713,6.0,171.85,171.81,20.14298707]
[1729970157909,6.0,171.85,171.82,2.9138]
[1729970158221,6.0,171.85,171.81,20.14298707]
[1729970158407,6.0,171.85,171.78,20.14298707]
[1729970159008,2.9136,171.84,171.8,2.9142]
[1729970160311,6.0,171.85,171.78,20.14298707]
[1729970160509,6.0,171.85,171.78,2.9146]
[1729970161415,57.8869,171.87,171.75,20.14298707]
[1729970161618,6.0,171.86,171.77,20.14298707]
[1729970162715,2.9137,171.84,171.8,2.9142]
[1729970162922,57.8869,171.87,171.8,20.14298707]
[1729970163121,6.02,171.83,171.8,20.14298707]
[1729970163620,6.02,171.88,171.82,20.14298707]
[1729970163814,6.02,171.88,171.85,20.14298707]
[1729970164118,3.1936,171.96,171.88,2.9129]
[1729970164119,6.02,171.89,171.88,2.9129]
[1729970164420,6.02,171.89,171.88,12.59377888]
[1729970164616,6.02,171.91,171.9,2.9124]
[1729970164917,7.5735,171.95,171.9,12.59377888]
[1729970165315,7.5735,171.95,171.88,12.59377888]
[1729970165316,2.9119,171.94,171.88,12.59377888]
[1729970165719,2.9119,171.94,171.89,2.9126]
[1729970166429,2.9119,171.94,171.83,1.5377]
[1729970166430,7.5735,171.95,171.87,20.14834113]
[1729970166721,6.02,171.95,171.89,20.14834113]
[1729970167810,6.02,171.95,171.91,2.9123]
[1729970168716,8.9317,171.95,171.91,2.9123]
[1729970169317,8.9317,171.95,171.89,20.14834113]
[1729970169318,6.02,171.95,171.89,20.14834113]
[1729970170725,8.9318,171.95,171.9,2.9124]
[1729970171421,8.9318,171.95,171.89,20.14834113]
[1729970171622,6.02,171.95,171.91,2.9123]
[1729970171922,4.5003,171.96,171.91,2.9123]
[1729970172127,6.0,171.95,171.91,2.9123]
[1729970172624,6.0,171.95,171.92,2.9122]
[1729970172820,56.6,171.97,171.92,20.14834113]
[1729970172821,6.0,171.94,171.92,20.14834113]
[1729970173027,1.5025,172.01,171.92,20.14834113]
[1729970173325,2.9113,171.98,171.93,2.9119]
[1729970173717,6.0,172.0,171.93,2.9119]
[1729970173923,6.0,172.0,171.83,1.5377]
[1729970174123,1.565,171.99,171.87,20.14834113]
[1729970174726,1.565,171.99,171.9,2.9125]
[1729970175131,2.9119,171.95,171.9,2.9125]
[1729970175329,6.0,171.94,171.9,2.9125]
[1729970176219,6.0,171.94,171.87,20.14834113]
[1729970176427,6.0,171.94,171.91,2.9123]
[1729970177228,2.9117,171.96,171.91,2.9123]
[1729970177433,6.0,171.95,171.91,2.9123]
[1729970180040,5.72,171.96,171.94,2.9119]
[1729970180245,5.72,171.96,171.92,20.14834113]
[1729970180637,5.72,171.96,171.94,2.9117]
[1729970181137,5.72,171.96,171.87,20.14834113]
[1729970181745,2.9118,171.95,171.91,2.9123]
[1729970182646,5.72,171.96,171.91,2.9123]
[1729970182647,2.9119,171.94,171.91,2.9123]
[1729970187948,2.9117,171.95,171.92,2.9121]
[1729970189856,5.72,171.96,171.92,2.9121]
[1729970190153,8.6316,171.96,171.92,2.9121]
[1729970190752,5.72,171.96,171.93,2.9119]
[1729970190949,1.5025,172.01,171.95,12.58911072]
[1729970191454,2.9111,171.99,171.96,2.9115]
[1729970192449,8.6309,172.0,171.96,15.50061072]
[1729970193046,4.4133,172.01,171.97,2.9113]
[1729970193250,5.72,172.0,171.97,2.9113]
[1729970194361,4.4133,172.01,171.97,2.9113]
[1729970194545,5.72,172.0,171.97,2.9113]